Workbook

Sheet Dashboard
A1: Total Sent: | C1: ='Backing Sheet Data'!S2 -> 72175 | E1: Left process at stage 1: | H1: ='Backing Sheet Data'!T2 -> 29756 | J1: Left process at stage 2: | M1: ='Backing Sheet Data'!U2+'Backing Sheet Data'!W2 -> 1180 | O1: Exited process: | R1: ='Backing Sheet Data'!V2 -> 29973 | T1: Settled: | V1: ='Backing Sheet Data'!X2 -> 3849 | X1: Remaining: | Z1: =C1-H1-M1-R1-V1 -> 7417
A3: Δ from last month: | C3: =VLOOKUP('Backing Sheet Data'!$B$2,tblELDBackingData[],2,FALSE) -> 361 | E3: Δ from last month: | H3: =VLOOKUP('Backing Sheet Data'!$B$2,tblELDBackingData[],3,FALSE) -> 166 | J3: Δ from last month: | M3: =VLOOKUP('Backing Sheet Data'!$B$2,tblELDBackingData[],4,FALSE)+VLOOKUP('Backing Sheet Data'!$B$2,tblELDBackingData[],6,FALSE) -> 4 | O3: Δ from last month: | R3: =VLOOKUP('Backing Sheet Data'!$B$2,tblELDBackingData[],5,FALSE) -> 126 | T3: Δ from last month: | V3: =VLOOKUP('Backing Sheet Data'!$B$2,tblELDBackingData[],7,FALSE) -> 27 | X3: Δ from last month: | Z3: =C3-H3-M3-R3-V3 -> 38
A5: Left Process Breakdowns - Stage 1:
A7: Reason | H7: This Month | J7: Last Month | L7: Δ
A8: Liability Decision Timeout | H8: ='Backing Sheet Data'!D25 -> 24030 | J8: =H8-L8 -> 23880 | L8: ='Backing Sheet Data'!E25 -> 150
A9: Other | H9: ='Backing Sheet Data'!F25 -> 5726 | J9: =H9-L9 -> 5710 | L9: ='Backing Sheet Data'!G25 -> 16
A10: Total | H10: =SUM(H8:I9) -> 29756 | J10: =SUM(J8:K9) -> 29590 | L10: =SUM(L8:M9) -> 166
A11: Left Process Breakdowns - Stage 2:
A13: Reason | H13: This Month | J13: Last Month | L13: Δ
A14: Interim payment more than £1,000 not agreed: | H14: ='Backing Sheet Data'!H25 -> 4 | J14: =H14-L14 -> 4 | L14: ='Backing Sheet Data'!I25 -> 0
A15: Settlement pack repudiated: | H15: ='Backing Sheet Data'!J25 -> 501 | J15: =H15-L15 -> 497 | L15: ='Backing Sheet Data'!K25 -> 4
A16: Settlement pack timeout: | H16: ='Backing Sheet Data'!L25 -> 420 | J16: 420 | L16: ='Backing Sheet Data'!M25 -> 0
A17: No agreement; Court Proceedings pack: | H17: ='Backing Sheet Data'!N25 -> 255 | J17: 255 | L17: ='Backing Sheet Data'!O25 -> 0
A18: Total | H18: =SUM(H14:I17) -> 1180 | J18: =SUM(J14:K17) -> 1176 | L18: =SUM(L14:M17) -> 4

Sheet Backing Sheet Data (hidden)
A1: Reporting date | B1: 2019-10-01
A2: Latest month | B2: 2019-09-01 | S2: 72175 | T2: 29756 | U2: 925 | V2: 29973 | W2: 255 | X2: 3849 | Y2: 287384.0405
R3: Period | S3: CNFs Sent | T3: CNFs left at Stage 1 | U3: Stage 2 Exit | V3: Exit process | W3: Court Pack | X3: Settled claims | Y3: General Damages | AA3: Period | AB3: Previous 12 months rolling sum
A4: Rolling 12 CNFs sent | D4: Court packs rolling 12 | R4: 2013-08-01 | S4: 167 | T4: 1 | U4: 0 | V4: 17 | W4: 0 | X4: 0 | AA4: 2013-12-01
R5: 2013-09-01 | S5: 334 | T5: 47 | U5: 0 | V5: 34 | W5: 0 | X5: 0 | AA5: 2014-01-01
A6: Period | B6: Rolling 12 Sent | D6: Row Labels | E6: Total Court Packs | G6: Row Labels | H6: Ave General Damages | R6: 2013-10-01 | S6: 620 | T6: 197 | U6: 0 | V6: 92 | W6: 0 | X6: 0 | AA6: 2014-02-01
A7: 2018-10-01 | B7: 6618 | D7: 2018-10-01 | E7: 0 | G7: 2018-10-01 | H7: 4481.609333 | R7: 2013-11-01 | S7: 815 | T7: 284 | U7: 0 | V7: 126 | W7: 0 | X7: 0 | AA7: 2014-03-01
A8: 2018-11-01 | B8: 6363 | D8: 2018-11-01 | E8: 1 | G8: 2018-11-01 | H8: 4158.054166 | R8: 2013-12-01 | S8: 724 | T8: 346 | U8: 2 | V8: 178 | W8: 0 | X8: 3 | Y8: 3309.666666 | AA8: 2014-04-01
A9: 2018-12-01 | B9: 6185 | D9: 2018-12-01 | E9: 2 | G9: 2018-12-01 | H9: 3616.788888 | R9: 2014-01-01 | S9: 1071 | T9: 507 | U9: 1 | V9: 268 | W9: 0 | X9: 5 | Y9: 5208 | AA9: 2014-05-01
A10: 2019-01-01 | B10: 5908 | D10: 2019-01-01 | E10: 1 | G10: 2019-01-01 | H10: 3734.385 | R10: 2014-02-01 | S10: 998 | T10: 377 | U10: 3 | V10: 212 | W10: 0 | X10: 21 | Y10: 5377.859047 | AA10: 2014-06-01
A11: 2019-02-01 | B11: 5702 | D11: 2019-02-01 | E11: 0 | G11: 2019-02-01 | H11: 4074.730689 | R11: 2014-03-01 | S11: 1251 | T11: 478 | U11: 3 | V11: 374 | W11: 3 | X11: 34 | Y11: 5664.852941 | AA11: 2014-07-01
A12: 2019-03-01 | B12: 5462 | D12: 2019-03-01 | E12: 1 | G12: 2019-03-01 | H12: 3890.427586 | R12: 2014-04-01 | S12: 1388 | T12: 446 | U12: 5 | V12: 407 | W12: 2 | X12: 32 | Y12: 4801.606875 | AA12: 2014-08-01
A13: 2019-04-01 | B13: 5340 | D13: 2019-04-01 | E13: 3 | G13: 2019-04-01 | H13: 4254.035277 | R13: 2014-05-01 | S13: 1359 | T13: 545 | U13: 4 | V13: 547 | W13: 4 | X13: 42 | Y13: 5028.22238 | AA13: 2014-09-01
A14: 2019-05-01 | B14: 5268 | D14: 2019-05-01 | E14: 0 | G14: 2019-05-01 | H14: 3973.95 | R14: 2014-06-01 | S14: 1351 | T14: 590 | U14: 14 | V14: 589 | W14: 8 | X14: 74 | Y14: 4828.914324 | AA14: 2014-10-01
A15: 2019-06-01 | B15: 5126 | D15: 2019-06-01 | E15: 2 | G15: 2019-06-01 | H15: 4900.111818 | R15: 2014-07-01 | S15: 1727 | T15: 543 | U15: 19 | V15: 651 | W15: 3 | X15: 86 | Y15: 4877.246744 | AA15: 2014-11-01 | AB15: 15879
A16: 2019-07-01 | B16: 5080 | D16: 2019-07-01 | E16: 3 | G16: 2019-07-01 | H16: 4078.79037 | R16: 2014-08-01 | S16: 1303 | T16: 512 | U16: 12 | V16: 654 | W16: 10 | X16: 58 | Y16: 4740.314655 | AA16: 2014-12-01 | AB16: 16464
A17: 2019-08-01 | B17: 5032 | D17: 2019-08-01 | E17: 0 | G17: 2019-08-01 | H17: 4280.075833 | R17: 2014-09-01 | S17: 1605 | T17: 559 | U17: 34 | V17: 703 | W17: 10 | X17: 106 | Y17: 4555.839622 | AA17: 2015-01-01 | AB17: 17204
A18: 2019-09-01 | B18: 4963 | D18: 2019-09-01 | E18: 0 | G18: 2019-09-01 | H18: 4173.677777 | R18: 2014-10-01 | S18: 1584 | T18: 552 | U18: 34 | V18: 727 | W18: 20 | X18: 106 | Y18: 4804.339622 | AA18: 2015-02-01 | AB18: 18567
D19: Grand Total | E19: 13 | G19: Grand Total | H19: 49616.63674 | R19: 2014-11-01 | S19: 1518 | T19: 535 | U19: 31 | V19: 680 | W19: 11 | X19: 83 | Y19: 4192.844939 | AA19: 2015-03-01 | AB19: 19963
R20: 2014-12-01 | S20: 1309 | T20: 559 | U20: 34 | V20: 705 | W20: 10 | X20: 74 | Y20: 4345.077837 | AA20: 2015-04-01 | AB20: 20828
R21: 2015-01-01 | S21: 1811 | T21: 583 | U21: 31 | V21: 698 | W21: 12 | X21: 64 | Y21: 4383.794062 | AA21: 2015-05-01 | AB21: 21318
R22: 2015-02-01 | S22: 2361 | T22: 426 | U22: 28 | V22: 769 | W22: 5 | X22: 70 | Y22: 4623.180142 | AA22: 2015-06-01 | AB22: 21939
B23: 33009 | R23: 2015-03-01 | S23: 2647 | T23: 841 | U23: 21 | V23: 1143 | W23: 5 | X23: 86 | Y23: 4959.155 | AA23: 2015-07-01 | AB23: 21991
A24: Exit Process Reason | B24: Total | D24: LDT | E24: This Month LDT | F24: Other Liability | G24: This Month Other Liability | H24: Interim Payment Not Agreed | I24: This Month Interim Payment Not Agreed | J24: Repudiated | K24: This Month Repudiated | L24: Timeout | M24: This Month Timeout | N24: Court Proceedings | O24: This Month Court Proceedings | R24: 2015-04-01 | S24: 2253 | T24: 860 | U24: 28 | V24: 1182 | W24: 7 | X24: 74 | Y24: 4358.135 | AA24: 2015-08-01 | AB24: 22316
A25: Claim is too complex for process | B25: 161 | D25: 24030 | E25: 150 | F25: 5726 | G25: 16 | H25: 4 | I25: 0 | J25: 501 | K25: 4 | L25: 420 | M25: 0 | N25: 255 | O25: 0 | R25: 2015-05-01 | S25: 1849 | T25: 781 | U25: 20 | V25: 988 | W25: 5 | X25: 86 | Y25: 3996.816627 | AA25: 2015-09-01 | AB25: 22574
A26: Claim requires further investigation | B26: 14268 | R26: 2015-06-01 | S26: 1972 | T26: 999 | U26: 24 | V26: 998 | W26: 4 | X26: 78 | Y26: 4745.808589 | AA26: 2015-10-01 | AB26: 22883
A27: Duplicated claim | B27: 2565 | R27: 2015-07-01 | S27: 1779 | T27: 877 | U27: 31 | V27: 879 | W27: 10 | X27: 92 | Y27: 4072.280326 | AA27: 2015-11-01 | AB27: 22988
A28: Incomplete information provided on CNF | B28: 5426 | R28: 2015-08-01 | S28: 1628 | T28: 655 | U28: 26 | V28: 649 | W28: 3 | X28: 74 | Y28: 3784.822432 | AA28: 2015-12-01 | AB28: 23074
A29: Interim payment for child claimant | B29: 12 | R29: 2015-09-01 | S29: 1863 | T29: 705 | U29: 17 | V29: 750 | W29: 7 | X29: 89 | Y29: 3917.263595 | AA29: 2016-01-01 | AB29: 22632
A30: Interim Payment partial offer not accepted | B30: 1 | R30: 2015-10-01 | S30: 1893 | T30: 716 | U30: 22 | V30: 824 | W30: 8 | X30: 96 | Y30: 4040.405 | AA30: 2016-02-01 | AB30: 21491
A31: Interim Payment request not answered and/or paid on time | B31: 14 | R31: 2015-11-01 | S31: 1623 | T31: 710 | U31: 22 | V31: 864 | W31: 6 | X31: 119 | Y31: 3995.553613 | AA31: 2016-03-01 | AB31: 19939
A32: Other | B32: 9234 | R32: 2015-12-01 | S32: 1395 | T32: 655 | U32: 24 | V32: 668 | W32: 4 | X32: 99 | Y32: 3986.581414 | AA32: 2016-04-01 | AB32: 18661
A33: Stage 1 costs not paid on time | B33: 108 | R33: 2016-01-01 | S33: 1369 | T33: 607 | U33: 15 | V33: 657 | W33: 7 | X33: 78 | Y33: 3651.267692 | AA33: 2016-05-01 | AB33: 17670
A34: Value of claim below ú1,000 | B34: 28 | R34: 2016-02-01 | S34: 1220 | T34: 500 | U34: 18 | V34: 563 | W34: 2 | X34: 103 | Y34: 3741.542524 | AA34: 2016-06-01 | AB34: 16448
A35: Value of claim exceeds the upper limit | B35: 106 | R35: 2016-03-01 | S35: 1095 | T35: 599 | U35: 19 | V35: 570 | W35: 4 | X35: 89 | Y35: 4073.583483 | AA35: 2016-07-01 | AB35: 15360
A36: Withdrawal of claim | B36: 990 | R36: 2016-04-01 | S36: 975 | T36: 458 | U36: 23 | V36: 463 | W36: 3 | X36: 89 | Y36: 3934.267303 | AA36: 2016-08-01 | AB36: 14582
A37: Withdrawal of offer | B37: 96 | R37: 2016-05-01 | S37: 858 | T37: 447 | U37: 18 | V37: 358 | W37: 3 | X37: 59 | Y37: 3943.311525 | AA37: 2016-09-01 | AB37: 13566
R38: 2016-06-01 | S38: 750 | T38: 382 | U38: 23 | V38: 417 | W38: 6 | X38: 80 | Y38: 3885.65225 | AA38: 2016-10-01 | AB38: 12488
R39: 2016-07-01 | S39: 691 | T39: 324 | U39: 8 | V39: 300 | W39: 3 | X39: 67 | Y39: 3694.562835 | AA39: 2016-11-01 | AB39: 11718
R40: 2016-08-01 | S40: 850 | T40: 267 | U40: 13 | V40: 245 | W40: 2 | X40: 47 | Y40: 3745.858723 | AA40: 2016-12-01 | AB40: 10937
R41: 2016-09-01 | S41: 847 | T41: 370 | U41: 12 | V41: 372 | W41: 3 | X41: 77 | Y41: 3320.116103 | AA41: 2017-01-01 | AB41: 10411
R42: 2016-10-01 | S42: 815 | T42: 359 | U42: 17 | V42: 319 | W42: 2 | X42: 51 | Y42: 3626.506078 | AA42: 2017-02-01 | AB42: 10046
R43: 2016-11-01 | S43: 853 | T43: 366 | U43: 24 | V43: 332 | W43: 5 | X43: 64 | Y43: 3529.330468 | AA43: 2017-03-01 | AB43: 9893
R44: 2016-12-01 | S44: 614 | T44: 310 | U44: 13 | V44: 312 | W44: 2 | X44: 59 | Y44: 3692.492372 | AA44: 2017-04-01 | AB44: 9618
R45: 2017-01-01 | S45: 843 | T45: 328 | U45: 12 | V45: 326 | W45: 1 | X45: 63 | Y45: 3946.495714 | AA45: 2017-05-01 | AB45: 9560
R46: 2017-02-01 | S46: 855 | T46: 227 | U46: 18 | V46: 298 | W46: 3 | X46: 60 | Y46: 3846.284166 | AA46: 2017-06-01 | AB46: 9711
R47: 2017-03-01 | S47: 942 | T47: 429 | U47: 12 | V47: 477 | W47: 3 | X47: 68 | Y47: 3503.519852 | AA47: 2017-07-01 | AB47: 9738
R48: 2017-04-01 | S48: 700 | T48: 271 | U48: 5 | V48: 325 | W48: 0 | X48: 41 | Y48: 3306.287804 | AA48: 2017-08-01 | AB48: 9638
R49: 2017-05-01 | S49: 800 | T49: 382 | U49: 11 | V49: 371 | W49: 3 | X49: 44 | Y49: 3207.671363 | AA49: 2017-09-01 | AB49: 9499
R50: 2017-06-01 | S50: 901 | T50: 348 | U50: 17 | V50: 367 | W50: 1 | X50: 44 | Y50: 3518.720909 | AA50: 2017-10-01 | AB50: 9440
R51: 2017-07-01 | S51: 718 | T51: 348 | U51: 7 | V51: 348 | W51: 1 | X51: 38 | Y51: 4191.371842 | AA51: 2017-11-01 | AB51: 9277
R52: 2017-08-01 | S52: 750 | T52: 367 | U52: 5 | V52: 306 | W52: 3 | X52: 45 | Y52: 3454.763777 | AA52: 2017-12-01 | AB52: 9140
R53: 2017-09-01 | S53: 708 | T53: 322 | U53: 15 | V53: 294 | W53: 2 | X53: 40 | Y53: 4071.3635 | AA53: 2018-01-01 | AB53: 9013
R54: 2017-10-01 | S54: 756 | T54: 334 | U54: 5 | V54: 304 | W54: 0 | X54: 34 | Y54: 3959.639705 | AA54: 2018-02-01 | AB54: 8833
R55: 2017-11-01 | S55: 690 | T55: 341 | U55: 16 | V55: 314 | W55: 3 | X55: 55 | Y55: 3900 | AA55: 2018-03-01 | AB55: 8577
R56: 2017-12-01 | S56: 477 | T56: 276 | U56: 8 | V56: 250 | W56: 4 | X56: 35 | Y56: 3988.395714 | AA56: 2018-04-01 | AB56: 8404
R57: 2018-01-01 | S57: 716 | T57: 313 | U57: 7 | V57: 254 | W57: 5 | X57: 49 | Y57: 4233.616122 | AA57: 2018-05-01 | AB57: 8095
R58: 2018-02-01 | S58: 675 | T58: 231 | U58: 5 | V58: 231 | W58: 5 | X58: 40 | Y58: 4047.62175 | AA58: 2018-06-01 | AB58: 7712
R59: 2018-03-01 | S59: 686 | T59: 325 | U59: 3 | V59: 316 | W59: 4 | X59: 44 | Y59: 4166.722272 | AA59: 2018-07-01 | AB59: 7472
R60: 2018-04-01 | S60: 527 | T60: 313 | U60: 3 | V60: 252 | W60: 0 | X60: 31 | Y60: 3611.230967 | AA60: 2018-08-01 | AB60: 7138
R61: 2018-05-01 | S61: 491 | T61: 266 | U61: 6 | V61: 223 | W61: 1 | X61: 28 | Y61: 3818.701785 | AA61: 2018-09-01 | AB61: 6860
R62: 2018-06-01 | S62: 518 | T62: 257 | U62: 8 | V62: 186 | W62: 3 | X62: 43 | Y62: 3560.903953 | AA62: 2018-10-01 | AB62: 6618
R63: 2018-07-01 | S63: 478 | T63: 264 | U63: 10 | V63: 199 | W63: 0 | X63: 41 | Y63: 3875.294146 | AA63: 2018-11-01 | AB63: 6363
R64: 2018-08-01 | S64: 416 | T64: 242 | U64: 11 | V64: 172 | W64: 1 | X64: 33 | Y64: 4000.580303 | AA64: 2018-12-01 | AB64: 6185
R65: 2018-09-01 | S65: 430 | T65: 192 | U65: 1 | V65: 150 | W65: 0 | X65: 30 | Y65: 4121.145333 | AA65: 2019-01-01 | AB65: 5908
R66: 2018-10-01 | S66: 514 | T66: 224 | U66: 7 | V66: 196 | W66: 0 | X66: 30 | Y66: 4481.609333 | AA66: 2019-02-01 | AB66: 5702
R67: 2018-11-01 | S67: 435 | T67: 249 | U67: 6 | V67: 143 | W67: 1 | X67: 24 | Y67: 4158.054166 | AA67: 2019-03-01 | AB67: 5460
R68: 2018-12-01 | S68: 299 | T68: 177 | U68: 2 | V68: 135 | W68: 2 | X68: 27 | Y68: 3616.788888 | AA68: 2019-04-01 | AB68: 5338
R69: 2019-01-01 | S69: 439 | T69: 207 | U69: 1 | V69: 162 | W69: 1 | X69: 24 | Y69: 3734.385 | AA69: 2019-05-01 | AB69: 5266
R70: 2019-02-01 | S70: 469 | T70: 150 | U70: 4 | V70: 131 | W70: 0 | X70: 29 | Y70: 4074.730689 | AA70: 2019-06-01 | AB70: 5121
R71: 2019-03-01 | S71: 444 | T71: 247 | U71: 4 | V71: 154 | W71: 1 | X71: 29 | Y71: 3890.427586 | AA71: 2019-07-01 | AB71: 5077
R72: 2019-04-01 | S72: 405 | T72: 225 | U72: 3 | V72: 153 | W72: 3 | X72: 36 | Y72: 4254.035277 | AA72: 2019-08-01 | AB72: 5032
R73: 2019-05-01 | S73: 419 | T73: 218 | U73: 5 | V73: 144 | W73: 0 | X73: 30 | Y73: 3973.95 | AA73: 2019-09-01 | AB73: 4963
R74: 2019-06-01 | S74: 373 | T74: 214 | U74: 6 | V74: 135 | W74: 2 | X74: 22 | Y74: 4900.111818
R75: 2019-07-01 | S75: 434 | T75: 222 | U75: 3 | V75: 130 | W75: 3 | X75: 27 | Y75: 4078.79037
R76: 2019-08-01 | S76: 371 | T76: 206 | U76: 2 | V76: 117 | W76: 0 | X76: 24 | Y76: 4280.075833
R77: 2019-09-01 | S77: 361 | T77: 166 | U77: 4 | V77: 126 | W77: 0 | X77: 27 | Y77: 4173.677777

Sheet Year Calculations (hidden)
A1: Period | B1: CNFs sent | C1: CNFs left at stage 1 | D1: Stage 2 exit | E1: Exit process | F1: Court pack | G1: Settled claims
A2: 2013-14 | B2: 11805 | C2: 4361 | D2: 51 | E2: 3495 | F2: 20 | G2: 297
A3: 2014-15 | B3: 21991 | C3: 8084 | D3: 328 | E3: 10126 | F3: 109 | G3: 977
A4: 2015-16 | B4: 15360 | C4: 6758 | D4: 235 | E4: 7083 | F4: 56 | G4: 1042
A5: 2016-17 | B5: 9738 | C5: 4005 | D5: 161 | E5: 4092 | F5: 26 | G5: 656
A6: 2017-18 | B6: 7472 | C6: 3609 | D6: 91 | E6: 3129 | F6: 30 | G6: 485
A7: 2018-19 | B7: 5809 | C7: 2939 | D7: 59 | E7: 2048 | F7: 14 | G7: 392
